bitfinex/quotes_ETHUSD_20240819
["timestamp","ask_amount","ask_price","bid_price","bid_amount"]
[1724095100370,2.4389,2610.6,2610.2,3.83107]
[1724095100726,2.4389,2610.6,2610.3,3.83097]
[1724095101474,2.4389,2610.6,2610.2,3.83111]
[1724095102346,6.26946,2610.6,2610.1,3.83125]
[1724095102569,3.83069,2610.5,2610.1,3.83125]
[1724095103209,3.83069,2610.5,2610.1,7.66244]
[1724095103407,7.47992249,2610.6,2610.2,0.06424419]
[1724095108663,2.4778,2610.3,2610.2,0.06424419]
[1724095108866,2.4778,2610.3,2609.9,3.83149]
[1724095109076,6.30878,2610.3,2609.9,3.83149]
[1724095109222,6.30878,2610.3,2609.8,3.83168]
[1724095109566,3.83127,2610.1,2609.9,0.06445027]
[1724095109917,3.83127,2610.1,2609.7,3.83176]
[1724095110233,2.3323,2609.9,2609.5,11.20208]
[1724095110449,2.3323,2609.9,2609.6,3.83189]
[1724095110637,2.3323,2609.9,2609.7,3.83185]
[1724095110819,2.3323,2610.1,2609.7,7.66363]
[1724095111020,6.16359,2610.1,2609.7,3.83178]
[1724095111772,3.83142,2610.0,2609.3,3.83231]
[1724095111941,6.16393,2609.9,2609.4,3.83228]
[1724095112469,6.16393,2609.9,2609.3,3.83231]
[1724095112470,2.3323,2609.7,2609.3,3.83231]
[1724095113728,2.3323,2609.6,2609.1,3.83264]
[1724095113922,6.16439,2609.6,2609.1,3.83264]
[1724095114327,6.16439,2609.6,2609.2,3.83258]
[1724095114591,6.16439,2609.6,2609.1,3.83264]
[1724095115203,6.16439,2609.6,2608.9,3.83293]
[1724095115204,3.83232,2609.4,2608.9,3.83293]
[1724095115417,2.3323,2609.3,2608.9,3.83293]
[1724095116485,2.3323,2609.3,2609.0,3.83287]
[1724095117721,3.83205,2609.6,2609.0,3.83287]
[1724095117924,9.99649,2609.6,2609.0,3.83287]
[1724095118132,3.83218,2609.5,2609.0,3.83287]
[1724095118488,2.3323,2609.6,2609.2,3.83257]
[1724095118899,2.3323,2609.6,2609.3,0.06559668]
[1724095119208,2.3323,2609.6,2609.2,3.83257]
[1724095119424,2.3323,2609.6,2609.4,0.06559668]
[1724095119633,6.16432,2609.6,2609.1,3.83269]
[1724095119787,6.16432,2609.6,2609.5,0.06559668]
[1724095120133,7.05575799,2609.6,2609.5,0.06554814]
[1724095120345,7.05575799,2609.6,2609.2,3.83257]
[1724095120346,2.3323,2609.6,2609.2,3.83257]
[1724095120496,2.3323,2609.6,2609.5,0.06554814]
[1724095120693,2.3323,2609.6,2609.2,3.83257]
[1724095120928,2.3323,2609.6,2609.5,0.06554814]
[1724095121134,2.3323,2609.6,2609.2,3.83257]
[1724095121287,2.3323,2609.6,2609.5,0.06554814]
[1724095121627,2.3323,2609.6,2609.2,3.83257]
[1724095121932,3.83233,2609.4,2608.9,3.83301]
[1724095122139,10.08656,2609.4,2609.3,0.06554814]
[1724095122306,10.08656,2609.4,2608.9,3.83301]
[1724095122512,3.83245,2609.3,2608.7,3.83318]
[1724095122832,10.08656,2609.4,2608.8,3.8331]
[1724095123134,3.83247,2609.3,2608.8,3.8331]
[1724095124849,2.4159,2609.1,2608.7,3.83331]
[1724095125139,2.4159,2609.1,2608.6,3.83339]
[1724095125432,6.24871,2609.1,2608.6,3.83339]
[1724095125992,3.8329,2609.0,2608.5,3.8336]
[1724095126698,3.8329,2609.0,2608.6,3.83346]
[1724095127319,3.8329,2609.0,2608.5,3.8336]
[1724095128019,3.8329,2609.0,2608.4,3.83366]
[1724095128020,2.3083,2608.8,2608.4,3.83366]
[1724095128981,2.3083,2608.8,2608.4,7.66727]
[1724095129362,2.3083,2608.8,2608.4,3.83363]
[1724095131821,2.3083,2608.8,2607.9,3.83449]
[1724095131822,2.4895,2608.3,2607.9,3.83449]
[1724095132103,2.4895,2608.3,2607.3,7.97109713]
[1724095132104,6.32347,2608.3,2607.6,3.83488]
[1724095132308,3.83423,2608.1,2607.6,3.83483]
[1724095132803,2.4895,2608.0,2607.7,3.8347]
[1724095133007,2.4895,2608.0,2607.6,3.83483]
[1724095133209,6.32386,2608.0,2607.4,3.83517]
[1724095133511,6.32386,2608.0,2607.5,0.0642015]
[1724095134475,2.25,2607.9,2607.5,0.0642015]
[1724095134678,4.850175,2608.0,2607.5,0.0642015]
[1724095134679,7.78965,2607.8,2607.5,0.0642015]
[1724095134877,2.25,2607.5,2606.8,3.83599]
[1724095135082,3.83536,2607.4,2606.8,3.83599]
[1724095135281,3.83534,2607.4,2606.8,3.83599]
[1724095135996,3.83534,2607.4,2606.8,7.672]
[1724095136208,2.25,2607.5,2606.9,3.83594]
[1724095136385,2.25,2607.5,2607.1,3.83567]
[1724095136603,2.25,2607.5,2607.2,3.8355]
[1724095137452,7.36,2607.7,2607.2,3.83551]
[1724095137740,2.25,2607.6,2607.1,3.83558]
[1724095139013,7.36,2607.7,2607.0,2.493]
[1724095139207,7.36,2607.7,2607.3,3.83525]
[1724095140324,7.36,2607.7,2607.1,7.67117]
[1724095140595,2.25,2607.6,2607.1,3.83555]
[1724095140801,2.25,2607.6,2606.9,0.32602]
[1724095140802,6.08496,2607.6,2607.0,3.83575]
[1724095141641,6.08496,2607.6,2607.1,3.83567]
[1724095141955,2.25,2607.6,2607.0,2.87981]
[1724095142242,2.25,2607.6,2607.4,3.83523]
[1724095142425,2.25,2607.6,2607.2,3.83542]
[1724095142949,2.25,2607.6,2607.2,4.651826]
[1724095143465,7.36,2608.1,2606.7,3.83614]
[1724095143466,2.3168,2607.3,2606.7,3.83614]
[1724095143742,11.315,2608.1,2607.2,3.83553]
[1724095143743,7.36,2607.5,2607.2,3.83553]
[1724095143913,7.36,2607.5,2607.3,3.83529]
[1724095144102,2.3168,2607.6,2607.3,3.83529]
[1724095144503,2.3168,2607.6,2607.1,3.83557]
[1724095145038,2.3168,2607.6,2606.9,0.67271454]
[1724095145255,2.3168,2607.6,2606.9,3.83587]
[1724095145465,2.3168,2607.6,2607.3,3.83526]
[1724095145671,2.3168,2607.6,2607.3,7.67056]
[1724095145808,2.3168,2607.6,2607.3,3.83526]
[1724095146703,2.3168,2607.6,2607.1,3.83556]
[1724095146903,2.3168,2607.6,2607.3,3.83537]
[1724095147352,2.3168,2607.6,2607.2,3.83552]
[1724095147567,6.76698,2607.6,2607.1,3.83556]
[1724095147866,2.272,2607.2,2606.8,3.83611]
[1724095148610,2.272,2607.2,2606.9,0.06488077]
[1724095149059,6.10753,2607.2,2606.9,0.06488077]
[1724095149614,9.94317,2607.2,2606.9,0.06488077]
[1724095150032,6.10753,2607.2,2606.7,3.83619]
[1724095150323,2.272,2607.2,2606.9,3.83596]
[1724095151071,2.272,2607.2,2607.1,3.83567]
[1724095151244,7.36,2607.5,2607.3,3.83527]
[1724095151442,2.4092,2607.6,2607.3,3.83527]
[1724095151624,2.4092,2607.6,2607.4,0.06577851]
[1724095151826,2.4092,2607.6,2607.3,3.83527]
[1724095152024,2.4092,2607.6,2607.5,0.06577851]
[1724095152234,2.4092,2607.6,2607.3,3.83527]
[1724095152449,2.4092,2607.6,2607.5,0.06577851]
[1724095152664,2.4092,2607.6,2607.3,3.83527]
[1724095152870,2.4092,2607.6,2607.5,3.90086851]
[1724095153038,2.4092,2607.6,2607.5,3.83509]
[1724095153373,2.4092,2607.6,2607.5,3.90086851]
[1724095153519,2.4092,2607.6,2607.5,0.06577851]
[1724095154616,2.4092,2607.6,2607.2,3.83552]
[1724095154837,2.4092,2607.6,2607.5,0.06577851]
[1724095155078,2.4092,2607.6,2607.4,3.83512]
[1724095155364,2.4092,2607.6,2607.5,0.06577851]
[1724095156162,2.4092,2607.6,2607.4,3.83522]
[1724095156372,2.4092,2607.6,2607.5,3.90092918]
[1724095156873,6.48506,2607.6,2607.5,0.06583918]
[1724095157073,2.65012,2607.6,2607.5,0.06583918]
[1724095157278,2.4092,2607.6,2607.3,3.8353]
[1724095157479,2.4092,2607.6,2607.5,0.06583918]
[1724095157690,2.4092,2607.6,2607.5,3.83509]
[1724095157837,2.4402,2607.8,2607.6,3.83481]
[1724095158195,10.1097,2607.8,2607.3,3.83538]
[1724095158352,6.27493,2607.8,2607.7,0.06583918]
[1724095158681,6.27493,2607.8,2607.3,3.83531]
[1724095158882,6.27493,2607.8,2607.7,0.06583918]
[1724095159035,6.27493,2607.8,2607.3,7.67061]
[1724095159036,3.451138,2607.8,2607.3,7.67059]
[1724095159393,3.955,2608.3,2607.0,2.3158]
[1724095159394,2.4402,2608.1,2607.0,9.6858]
[1724095159594,2.4402,2608.1,2607.7,3.8347]
[1724095159964,2.4402,2608.1,2607.8,3.90030533]
[1724095160167,2.4402,2608.1,2607.9,3.83449]
[1724095160361,2.3216,2608.4,2608.0,3.83428]
[1724095160556,3.83391,2608.3,2608.0,0.06562072]
[1724095160782,3.83391,2608.3,2607.8,3.83456]
[1724095160962,3.83391,2608.3,2608.1,0.06560251]
[1724095161288,3.83391,2608.3,2607.8,3.83456]
[1724095161462,3.83406,2608.2,2607.8,3.83456]
[1724095162370,3.8342,2608.1,2607.6,3.83492]
[1724095162634,3.8342,2608.1,2607.5,3.83508]
[1724095162635,3.83451,2607.9,2607.5,3.83508]
[1724095162770,2.3216,2608.0,2607.6,3.83492]
[1724095163670,2.3216,2608.0,2607.7,0.06487092]
[1724095165033,2.3216,2608.0,2607.7,3.89964092]
[1724095165320,2.4503,2608.3,2608.0,3.83434]
[1724095165527,2.4503,2608.3,2608.1,3.83411]
[1724095165674,2.4503,2608.3,2608.1,3.83416]
[1724095165872,2.4503,2608.3,2608.1,3.89904911]
[1724095166074,7.36,2608.4,2608.3,7.66782]
[1724095166269,2.4503,2608.9,2608.5,3.83355]
[1724095166534,2.4503,2608.9,2608.5,7.6671]
[1724095166688,2.4503,2608.9,2608.6,3.89806686]
[1724095166892,3.83275,2609.1,2608.6,3.89806686]
[1724095166893,2.4503,2609.1,2608.6,3.89806686]
[1724095167348,7.84712511,2609.1,2608.6,3.89806686]
[1724095168027,4.01438511,2609.1,2608.6,3.89806686]
[1724095168358,4.01438511,2609.1,2608.6,7.73144686]
[1724095168567,4.01438511,2609.1,2608.6,3.89805686]
[1724095168745,2.4503,2609.1,2608.7,3.83331]
[1724095168950,7.36,2609.3,2608.9,3.83294]
[1724095169269,13.64238,2609.6,2609.0,3.83278]
[1724095169414,3.83215,2609.5,2608.9,3.83294]
[1724095169619,5.23033111,2609.6,2609.1,0.06441617]
[1724095169931,6.28276,2609.3,2609.2,0.06441617]
[1724095170140,6.28276,2609.3,2608.7,3.83324]
[1724095170343,6.28276,2609.3,2609.2,0.06430707]
[1724095170517,3.83268,2609.2,2608.7,3.83324]
[1724095170716,3.83268,2609.2,2608.8,0.06430101]
[1724095170951,7.29426,2609.3,2608.7,7.66648]
[1724095171278,7.29426,2609.3,2608.9,0.06430101]
[1724095171448,7.29426,2609.3,2608.8,0.06429495]
[1724095171648,7.29426,2609.3,2608.7,3.83324]
[1724095171649,3.83267,2609.2,2608.7,3.83324]
[1724095171886,3.83267,2609.2,2608.9,0.06429495]
[1724095172106,7.29426,2609.3,2608.8,3.89740071]
[1724095172387,7.29426,2609.3,2608.9,0.06427071]
[1724095172561,6.28275,2609.3,2608.9,0.06427071]
[1724095172761,6.28275,2609.3,2608.8,3.83314]
[1724095172961,2.4503,2609.3,2609.0,0.06427071]
[1724095173169,2.4503,2609.3,2608.9,3.89730707]
[1724095173355,2.4503,2609.3,2609.1,0.06374324]
[1724095173555,2.4503,2609.3,2608.9,3.833]
[1724095173752,2.4503,2609.3,2609.2,0.06374324]
[1724095173983,2.4503,2609.3,2608.9,7.66595]
[1724095174186,2.4503,2609.3,2609.2,0.06374324]
[1724095174490,2.4503,2609.3,2609.0,3.83286]
[1724095174720,2.4503,2609.3,2609.2,0.06374324]
[1724095175191,6.28275,2609.3,2608.7,7.66648]
[1724095175352,6.911003,2609.3,2609.2,0.06374324]
[1724095175546,6.911003,2609.3,2608.7,7.66648]
[1724095175786,2.4503,2609.3,2609.2,0.06374324]
[1724095175992,2.4503,2609.3,2608.8,3.83314]
[1724095176296,6.28274,2609.3,2609.2,0.06374324]
[1724095176451,6.28274,2609.3,2608.8,3.83314]
[1724095176650,6.28274,2609.3,2609.2,0.06374324]
[1724095176848,2.4503,2609.3,2608.9,3.83302]
[1724095177105,2.4503,2609.3,2609.2,0.06374324]
[1724095177267,2.4503,2609.3,2608.9,3.83302]
[1724095177452,2.4503,2609.3,2609.2,0.06374324]
[1724095177856,2.4503,2609.3,2608.9,3.83302]
[1724095178094,2.4503,2609.3,2609.0,3.83281]
[1724095178255,2.4503,2609.3,2609.0,0.06374324]
[1724095180175,6.28275,2609.3,2609.0,0.06374324]
[1724095180376,3.83273,2609.1,2608.6,3.83345]
[1724095180578,6.17809,2609.0,2608.6,3.83345]
[1724095181908,2.3452,2609.0,2608.7,3.83332]
[1724095182107,2.3452,2609.0,2608.7,3.83323]
[1724095182429,6.17765,2609.3,2608.9,3.83302]
[1724095182922,6.17765,2609.3,2608.8,3.83316]
[1724095183576,2.3452,2609.3,2608.9,3.83295]
[1724095183780,6.17767,2609.3,2608.8,3.83316]
[1724095184024,6.17767,2609.3,2608.9,3.83301]
[1724095184229,2.3452,2609.3,2608.9,3.83301]
[1724095185083,2.3452,2609.3,2609.0,3.83286]
[1724095185639,2.3452,2609.8,2609.3,3.83242]
[1724095185800,2.3452,2609.8,2609.5,7.66421]
[1724095186003,2.3452,2609.8,2609.5,3.83207]
[1724095186205,2.3452,2609.8,2609.5,3.83204]
[1724095186529,2.3452,2609.8,2609.3,3.83243]
[1724095186890,2.3452,2609.8,2609.1,3.83262]
[1724095187129,2.3452,2609.8,2609.1,7.66527]
[1724095187130,3.83209,2609.6,2609.1,7.66527]
[1724095187304,3.83209,2609.6,2609.1,7.66528]
[1724095187711,3.83209,2609.6,2609.2,3.83257]
[1724095188300,6.41149,2609.8,2609.3,3.83244]
[1724095188301,3.83187,2609.7,2609.3,3.83244]
[1724095188701,2.3452,2609.8,2609.4,3.8322]
[1724095188902,2.3452,2609.8,2609.4,3.83222]
[1724095189526,2.3452,2609.8,2609.5,3.83213]
[1724095190108,3.83144,2610.0,2609.1,3.83273]
[1724095190404,3.83144,2610.0,2608.9,9.8362]
[1724095190405,2.383,2609.8,2609.4,3.83217]
[1724095191021,2.383,2609.8,2609.6,3.832]
[1724095191433,2.383,2609.8,2609.3,3.83232]
[1724095191633,6.21471,2609.8,2609.4,3.83228]
[1724095192801,3.832,2609.6,2609.2,3.83247]
[1724095193212,7.66408,2609.6,2609.1,3.83271]
[1724095193568,3.832,2609.6,2609.2,3.83258]
[1724095193754,7.36,2609.9,2609.2,0.06311914]
[1724095193964,7.36,2609.9,2608.4,2.27]
[1724095193965,6.29746,2609.3,2608.7,3.83329]
[1724095194097,3.83279,2609.1,2608.7,3.83329]
[1724095194300,3.83279,2609.1,2608.8,0.06316154]
[1724095194601,3.8326,2609.2,2608.7,3.83325]
[1724095194837,3.8326,2609.2,2608.9,0.06316154]
[1724095195139,3.8326,2609.2,2609.0,0.06316154]
[1724095195296,3.8326,2609.2,2608.8,3.83315]
[1724095195638,2.465,2609.3,2608.9,0.06316154]
[1724095195838,7.36,2609.5,2609.1,3.83262]
[1724095196255,7.36,2609.5,2609.2,0.0631373]
[1724095196256,11.19217,2609.5,2609.2,0.0631373]
[1724095196546,11.19217,2609.5,2609.1,3.83262]
[1724095196852,7.36,2609.5,2609.2,3.83256]
[1724095197440,7.36,2609.5,2609.3,0.0631373]
[1724095197751,6.29701,2609.6,2609.2,3.83256]
[1724095197947,6.29701,2609.6,2609.1,3.83262]
[1724095198119,3.83216,2609.5,2609.3,0.0631373]
[1724095198325,3.83216,2609.5,2609.1,3.83262]
[1724095198527,7.66439,2609.5,2609.1,3.83262]
[1724095198728,7.66439,2609.5,2608.9,3.83295]
[1724095198729,3.83216,2609.5,2609.2,0.0631373]
[1724095198927,3.83216,2609.5,2609.0,3.83287]
[1724095199125,3.83216,2609.5,2609.1,0.0631373]
[1724095199520,3.83216,2609.5,2609.1,3.8958473]
[1724095200352,6.29701,2609.6,2609.1,3.8958473]
[1724095200552,3.83216,2609.5,2609.1,3.8958473]
[1724095200739,3.83246,2609.3,2609.1,0.0631373]
[1724095201050,3.83246,2609.3,2608.9,3.8329]
[1724095201268,6.18336,2609.3,2609.2,0.0631373]
[1724095201426,6.18336,2609.3,2608.9,3.8329]
[1724095201627,6.18336,2609.3,2609.2,0.0631373]
[1724095201827,3.8326,2609.2,2608.6,3.83336]
[1724095202028,3.83274,2609.1,2608.7,3.83332]
[1724095202228,2.3509,2609.3,2608.3,6.15349]
[1724095202428,2.3509,2609.3,2609.0,3.83285]
[1724095202625,7.36,2609.4,2609.0,3.83285]
[1724095202832,11.19238,2609.4,2608.9,3.83301]
[1724095203166,11.19238,2609.4,2608.9,3.83296]
[1724095203373,7.36,2609.4,2608.9,1.008826]
[1724095203670,7.36,2609.4,2609.0,3.83286]
[1724095205141,7.36,2609.4,2609.1,3.83269]
[1724095206398,7.36,2609.4,2609.0,3.83276]
[1724095206679,6.29898,2609.5,2609.0,3.83276]
[1724095207288,4.47110529,2609.5,2609.1,3.83266]
[1724095207489,2.4668,2609.5,2609.3,3.83243]
[1724095207633,2.4668,2609.5,2609.2,3.83258]
[1724095208270,4.47110529,2609.5,2609.2,3.83258]
[1724095208432,2.4668,2609.5,2609.3,0.06092366]
[1724095208695,4.47110529,2609.5,2609.2,3.83258]
[1724095209318,4.47110529,2609.5,2609.3,0.06092366]
[1724095209818,4.47110529,2609.5,2609.2,3.83258]
[1724095210168,2.00430529,2609.4,2609.3,0.06092366]
[1724095210571,2.00430529,2609.5,2609.4,7.66458]
[1724095210833,2.3105,2610.0,2609.7,3.83185]
[1724095210834,2.00430529,2609.8,2609.7,3.83185]
[1724095211120,2.00430529,2610.0,2609.7,3.83185]
[1724095211286,2.00889068,2609.9,2609.7,3.89277366]
[1724095211806,2.00889068,2609.9,2609.7,0.06092366]
[1724095212174,2.00889068,2609.8,2609.7,0.06092366]
[1724095213269,2.3541,2609.9,2609.5,3.83213]
[1724095213476,2.00942183,2609.8,2609.7,0.06074802]
[1724095213685,2.00942183,2609.8,2609.5,3.83213]
[1724095213886,2.00942183,2609.8,2609.7,0.06074802]
[1724095214068,2.00942183,2609.8,2609.5,3.83213]
[1724095214264,2.00942183,2609.8,2609.7,0.06074802]
[1724095214510,2.00942183,2609.8,2609.6,3.83198]
[1724095214811,2.00942183,2609.8,2609.7,0.06074802]
[1724095216408,10.78417007,2609.8,2609.7,0.06074802]
[1724095216712,10.78417007,2609.8,2609.2,3.83257]
[1724095216713,3.83195,2609.7,2609.2,3.83257]
[1724095216899,2.00934165,2609.5,2609.2,3.83257]
[1724095218325,2.00934165,2609.5,2609.2,3.83252]
[1724095218737,2.00934165,2609.5,2609.1,11.20273]
[1724095218913,2.00934165,2609.4,2608.7,3.83332]
[1724095219245,5.84219165,2609.1,2608.3,9.7023]
[1724095219538,2.41120998,2609.3,2608.6,3.83346]
[1724095219539,2.00934165,2609.0,2608.6,3.83346]
[1724095219834,2.00934165,2609.1,2608.6,3.83346]
[1724095220338,2.00934165,2609.1,2608.6,7.66678]
[1724095220339,5.84256467,2609.1,2608.6,7.66678]
[1724095221378,2.00981467,2609.1,2608.6,7.66678]
[1724095221577,2.00981467,2609.1,2608.6,8.433458]
[1724095223134,2.00981467,2609.1,2608.7,3.83331]
[1724095223280,5.84241467,2609.2,2608.7,3.83331]
[1724095223623,2.00981467,2609.1,2608.8,0.0584197]
[1724095223778,2.00981467,2609.1,2608.7,3.83331]
[1724095223978,2.00981467,2609.1,2608.9,0.0584197]
[1724095224293,2.00981467,2609.1,2609.0,3.83288]
[1724095224497,4.7962776,2609.4,2609.0,3.8912997]
[1724095224498,2.00981467,2609.2,2609.0,3.8912997]
[1724095224678,2.00951388,2609.2,2609.0,3.8912997]
[1724095224876,2.41141665,2609.5,2609.0,0.0584197]
[1724095224877,4.49341388,2609.3,2609.0,0.0584197]
[1724095225079,2.00951388,2609.2,2609.0,0.0584197]
[1724095225416,2.00951388,2609.2,2609.1,0.0584197]
[1724095225729,2.00951388,2609.2,2608.8,7.66619]
[1724095225931,2.00951388,2609.2,2608.8,3.83309]
[1724095226226,2.00951388,2609.2,2608.9,0.0584197]
[1724095227033,2.00951388,2609.2,2609.0,3.83278]
[1724095227238,2.00951388,2609.3,2609.2,3.83259]
[1724095227379,2.00951388,2609.4,2609.2,3.83252]
[1724095227579,2.00951388,2609.5,2609.3,3.83235]
[1724095228093,2.00951388,2609.5,2609.4,0.05880133]
[1724095228450,2.3798,2609.8,2609.2,4.22165213]
[1724095228451,2.00951388,2609.6,2609.5,3.83215]
[1724095228582,2.00951388,2609.8,2609.6,3.832]
[1724095228893,2.00951388,2609.8,2609.5,3.89086133]
[1724095229090,2.00919981,2609.8,2609.5,3.83206]
[1724095229419,2.00919981,2609.9,2609.6,0.05880133]
[1724095229607,2.00919981,2609.8,2609.3,3.83234]
[1724095229983,5.84098981,2609.8,2609.4,0.05880133]
[1724095230178,5.84098981,2609.8,2609.2,3.83254]
[1724095230179,4.34369981,2609.7,2609.2,3.83254]
[1724095230417,4.34369981,2609.7,2609.5,0.05880133]
[1724095230617,4.34369981,2609.7,2609.1,3.83264]
[1724095230618,2.00919981,2609.6,2609.1,3.83263]
[1724095230984,2.00919981,2609.6,2609.1,7.66525]
[1724095231218,2.00919981,2609.6,2609.2,3.83256]
[1724095232182,2.00919981,2609.6,2609.3,3.83243]
[1724095232381,4.34369981,2609.7,2609.3,3.83243]
[1724095232995,2.00919981,2609.6,2609.3,3.83243]
[1724095233831,2.00922782,2609.6,2609.4,3.83228]
[1724095234025,4.34372782,2609.7,2609.4,3.83228]
[1724095234384,4.34372782,2609.7,2609.2,3.83248]
[1724095234585,2.00922782,2609.6,2609.2,3.83248]
[1724095234824,2.00922782,2609.6,2609.3,3.83243]
[1724095235184,2.00922782,2609.6,2609.3,7.6648]
[1724095235431,4.34372782,2609.7,2609.4,3.83228]
[1724095235638,2.00922782,2609.7,2609.4,3.83228]
[1724095236883,2.00922782,2609.7,2609.4,3.83222]
[1724095237081,2.00922782,2609.7,2609.5,3.83214]
[1724095237498,2.00922782,2609.7,2609.6,0.10664198]
[1724095238326,2.00918501,2609.7,2609.4,3.83223]
[1724095238621,2.00918501,2609.7,2609.6,3.832]
[1724095238847,2.00918501,2609.8,2609.6,3.832]
[1724095239136,2.00918501,2609.9,2609.6,3.93828458]
[1724095239639,2.00918501,2609.9,2609.7,3.83184]
[1724095239837,2.00918501,2609.9,2609.7,3.93815486]
[1724095240991,2.00918501,2609.9,2609.8,3.83171]
[1724095241193,2.00918501,2609.9,2609.7,3.93814486]
[1724095241393,2.00918501,2609.9,2609.8,0.10623613]
[1724095241791,2.00918501,2609.9,2609.7,7.66361]
[1724095242013,2.00918501,2609.9,2609.8,0.10623613]
[1724095242557,2.00918501,2609.9,2609.7,3.83178]
[1724095242690,2.00918501,2609.9,2609.8,0.10623613]
[1724095243205,2.00851676,2610.0,2609.8,0.10623613]
[1724095243421,2.3551,2609.9,2609.5,3.83212]
[1724095243741,8.19518676,2609.9,2609.4,3.83227]
[1724095244485,8.19518676,2609.9,2609.4,7.6645]
[1724095244936,8.19518676,2609.9,2609.4,3.83228]
[1724095244937,2.00851676,2609.8,2609.4,3.83228]
[1724095245240,13.47050345,2609.9,2609.4,3.83228]
[1724095245423,5.84023676,2609.8,2609.4,3.83228]
[1724095246326,3.83229,2609.5,2609.0,11.20281]
[1724095246495,3.83229,2609.5,2608.9,3.83296]
[1724095246496,3.83236,2609.4,2608.9,3.83296]
[1724095246699,5.84099769,2609.4,2608.9,7.66587]
[1724095246898,3.83236,2609.4,2608.9,3.83291]
[1724095247111,5.84099769,2609.4,2608.9,3.83291]
[1724095247540,9.67354529,2609.4,2608.9,3.83291]
[1724095247844,5.84114529,2609.4,2608.9,3.83291]
[1724095248194,2.4036,2609.3,2608.7,3.8332]
[1724095248698,8.24482529,2609.3,2608.8,3.8331]
[1724095249210,4.41238529,2609.3,2608.9,3.83301]
[1724095249530,4.41238529,2609.3,2608.9,3.83295]
[1724095250123,4.41238529,2609.3,2608.2,3.83404]
[1724095250124,2.4688,2608.6,2608.2,3.83404]
[1724095250321,2.4688,2608.6,2607.7,3.27342665]
[1724095250322,2.4688,2608.6,2608.3,3.83383]
[1724095250861,8.10712529,2608.9,2608.4,3.83372]
[1724095251042,4.27408529,2608.9,2608.4,3.83372]
[1724095251357,8.10712529,2608.9,2608.4,3.83372]
[1724095251705,5.84166529,2609.0,2608.6,3.83345]
[1724095251920,2.0089738,2608.9,2608.5,3.8336]
[1724095252249,5.8418538,2609.0,2608.5,4.6770175]
[1724095252842,5.8418538,2609.0,2608.5,4.6769275]
[1724095253548,5.8418538,2609.0,2608.6,0.09994371]
[1724095254147,4.4740738,2609.1,2608.6,0.96098583]
[1724095254352,2.0089738,2609.1,2608.6,3.93328371]
[1724095254506,5.8417238,2609.1,2608.6,3.93328371]
[1724095254907,5.8417238,2609.1,2608.6,3.83334]
[1724095255352,5.8417238,2609.1,2608.7,0.09994371]
[1724095256422,3.83275,2609.1,2608.7,3.93324371]
[1724095256611,5.84044136,2609.2,2608.7,4.70991808]
[1724095257012,3.83275,2609.1,2608.7,0.09994371]
[1724095257259,2.3674,2609.0,2608.7,0.09994371]
[1724095257422,4.37523136,2609.0,2608.2,2.476]
[1724095257650,4.37523136,2609.0,2608.5,3.8335]
[1724095257651,2.00783136,2609.0,2608.5,3.8335]
[1724095257993,3.83266,2609.2,2608.7,3.8333]
[1724095257994,2.00783136,2609.1,2608.7,3.8333]
[1724095258141,5.84057136,2609.1,2608.5,4.21684]
[1724095258491,2.00783136,2609.1,2608.6,3.9333013]
[1724095258669,2.00783136,2609.1,2608.7,3.83328]
[1724095258873,2.00783136,2609.1,2608.8,3.83308]
[1724095259046,2.00783136,2609.3,2608.8,3.9329813]
[1724095259384,5.84022136,2609.4,2609.0,3.83286]
[1724095260084,2.00783136,2609.3,2609.0,3.83286]
[1724095260386,5.84022136,2609.4,2609.1,0.0999013]
[1724095260605,2.3674,2609.5,2609.1,0.0999013]
[1724095260761,2.00768606,2609.5,2609.1,4.32583243]
[1724095261522,2.00768606,2609.6,2609.2,3.83259]
[1724095261660,2.00768606,2609.7,2609.2,6.26689]
[1724095261855,5.83951606,2609.8,2609.3,4.60818212]
[1724095262061,3.83186,2609.7,2609.3,0.77576212]
[1724095262376,3.8319,2609.7,2609.3,0.77576212]
[1724095262703,2.2954,2609.5,2609.3,0.09975588]
[1724095263108,2.2954,2609.5,2609.2,3.83254]
[1724095263263,2.2954,2609.5,2609.3,3.83244]
[1724095263457,2.2954,2609.5,2609.3,3.93208685]
[1724095263994,5.83954606,2609.7,2609.3,3.93208685]
[1724095263995,8.11764606,2609.7,2609.3,3.93208685]
[1724095264200,8.11764606,2609.7,2609.3,0.09964685]
[1724095264382,4.28578606,2609.7,2609.3,3.83236]
[1724095264562,4.28578606,2609.7,2609.4,0.09964685]
[1724095264962,8.11764606,2609.7,2609.4,0.09964685]
[1724095265199,3.832,2609.6,2609.2,3.83257]
[1724095265799,8.11764606,2609.7,2609.3,0.09964685]
[1724095265971,11.94959606,2609.7,2609.2,3.83251]
[1724095266173,11.94959606,2609.7,2609.0,3.83277]
[1724095266174,3.83207,2609.6,2609.1,3.83273]
[1724095266364,5.8397214,2609.6,2609.1,3.83273]
[1724095266698,3.83207,2609.6,2609.2,0.09964685]
[1724095267480,5.8397214,2609.6,2609.2,0.09964685]
[1724095268259,2.0076514,2609.6,2609.2,3.93222685]
[1724095268464,8.1176214,2609.7,2609.2,8.54124454]
[1724095268657,8.1176214,2609.7,2609.2,7.76474685]
[1724095268888,8.1176214,2609.7,2609.2,3.93215685]
[1724095269060,2.0076514,2609.6,2609.2,3.93215685]
[1724095270265,3.8322,2609.5,2609.2,0.09964685]
[1724095270774,3.8322,2609.5,2609.3,0.09941665]
[1724095271079,2.0076514,2609.6,2609.3,0.09941665]
[1724095271282,9.94199,2609.7,2609.1,3.83271]
[1724095271283,4.2857514,2609.7,2609.4,3.83229]
[1724095271482,2.0076514,2609.7,2609.4,3.93168454]
[1724095271692,2.0076514,2609.8,2609.4,3.93168454]
[1724095272098,2.0076514,2609.8,2609.5,3.83213]
[1724095272309,2.0076514,2609.9,2609.6,3.83193]